Cogmind - Beta 13 @@@ ROGUE MODE // 2024.07.27 @ 17:22:53 Player: dp-fld Result: Destroyed by G-47 Trooper with Particle Gun Performance ------------- Evolutions (2) 1000 Regions Visited (7) 1400 Robots Destroyed (114) 570 Value Destroyed (3660) 3660 Prototype IDs (18) 360 Alien Tech Used (0) 0 Bonus (1133) 1133 TOTAL SCORE: 8123 Bonus ------- High Alert Combat Kills 627 Follower Combat Kills 474 Entered Garrisons 200 Friendly Fire -168 Cogmind --------- Core Integrity 0/550 Matter 200/300 Energy 160/160 System Corruption 6% Temperature Warm (193) Movement Treading (246) Ox1 Location -8/Materials Parts ------- > --- POWER (1) -------- Light Nuclear Core > --- PROPULSION (4) --- Light Treads Armored Treads (fused) Armored Treads Armored Wheel > --- UTILITY (4) ------ Huge Storage Unit Core Shielding Layered Light Armor Plating Layered Light Armor Plating > --- WEAPON (2) ------- Enhanced Autogun Enhanced Autogun > --- INVENTORY (25) --- Micro Nuclear Core Light Treads Improved Heat Sink Medium Storage Unit Advanced Visual Processing Unit Improved Sensor Array Signal Interpreter Improved Signal Interpreter ECM Suite Improved Utility Shielding Hacking Suite Hacking Suite Hacking Suite System Shield Heavy Particle Gun Advanced Beam Cannon Enhanced Autogun Enhanced Autogun Enhanced Autogun Enhanced Autogun Mini Grenade Launcher Mini Grenade Launcher Improved Datajack Power Maul Peak State ------------ > --- POWER ------------ Light Nuclear Core > --- PROPULSION ------- Armored Treads Armored Treads Armored Wheel Armored Wheel > --- UTILITY ---------- Huge Storage Unit Core Shielding Hardened Medium Armor Plating Layered Light Armor Plating > --- WEAPON ----------- Enhanced Autogun Enhanced Autogun > --- INVENTORY -------- Micro Nuclear Core Light Treads Improved Heat Sink Medium Storage Unit Advanced Visual Processing Unit Improved Sensor Array Signal Interpreter ECM Suite Improved Utility Shielding Layered Light Armor Plating Hacking Suite Hacking Suite Hacking Suite System Shield Heavy Particle Gun Advanced Beam Cannon Enhanced Autogun Enhanced Autogun Enhanced Autogun Enhanced Autogun Mini Grenade Launcher Mini Grenade Launcher Improved Datajack Power Maul [Rating: 37] Favorites ----------- Power Light Nuclear Core Engine Improved Ion Engine Power Core Light Nuclear Core Propulsion Light Treads Treads Light Treads Leg Aluminum Leg Wheel Armored Wheel Utility Huge Storage Unit Device Improved Heat Sink Storage Huge Storage Unit Protection Hardened Light Armor Plating Weapon Plasma Cannon Energy Gun Medium Laser Energy Cannon Plasma Cannon Ballistic Gun Assault Rifle Ballistic Cannon Light Cannon Launcher Rocket Launcher Slashing Weapon Great Axe Special Melee Weapon Datajack Build | -11 -10 -10 -10 -9 -8 -8 -8 ------- Run | Yrd Mat Min Exi Min Mat Gar Mat Slots Evolved 4 | . . . . . 4 . . Power . | . . . . . . . . Propulsion 2 | . . . . . 2 . . Utility 2 | . . . . . 2 . . Weapon . | . . . . . . . . Parts Attached 133 | 8 15 5 1 3 42 32 27 Power 17 | 1 2 2 . . 5 3 4 Engine 5 | 1 1 1 . . 2 . . Core 12 | . 1 1 . . 3 3 4 Reactor . | . . . . . . . . Propulsion 44 | 2 6 1 . . 13 13 9 Treads 24 | . 2 1 . . 13 3 5 Leg 7 | 2 3 . . . . 2 . Wheel 13 | . 1 . . . . 8 4 Hover . | . . . . . . . . Flight . | . . . . . . . . Utility 25 | 2 3 . . . 12 3 5 Device 9 | 1 1 . . . 4 2 1 Storage 3 | 1 2 . . . . . . Processor . | . . . . . . . . Hackware . | . . . . . . . . Protection 13 | . . . . . 8 1 4 Artifact . | . . . . . . . . Weapon 47 | 3 4 2 1 3 12 13 9 Energy Gun 11 | 2 . . . . 2 5 2 Energy Cannon 9 | . 1 1 . 1 5 . 1 Ballistic Gun 8 | 1 1 . . . 1 1 4 Ballistic Cannon 4 | . 1 . . 1 2 . . Launcher 10 | . 1 1 . 1 2 3 2 Special Weapon . | . . . . . . . . Impact Weapon . | . . . . . . . . Slashing Weapon 2 | . . . . . . 2 . Piercing Weapon . | . . . . . . . . Special Melee Weapon 3 | . . . 1 . . 2 . Unidentified Prototypes 3 | . . . . . 2 . 1 Parts Lost 22 | . 2 . . . 4 8 8 Power 2 | . . . . . . 1 1 Propulsion 11 | . 1 . . . 1 5 4 Utility 5 | . . . . . 2 . 3 Weapon 4 | . 1 . . . 1 2 . Highest Loss Streak 2 | . 1 . . . 2 2 2 To Critical Strikes . | . . . . . . . . Average Slot Usage (%) 99 | . 99 100 85 99 99 99 99 Engine 5 | . 4 12 14 14 3 . . Core 5 | . 9 1 . . 5 9 9 Treads 19 | . 14 14 14 14 35 9 7 Leg 1 | . 4 . . . . 1 . Wheel 11 | . 8 14 14 14 . 24 27 Device 15 | . 14 14 14 14 17 18 12 Storage 11 | . 14 14 14 14 9 9 9 Protection 5 | . . . . . 8 9 14 Energy Gun 4 | . 12 . . . . 4 9 Energy Cannon 9 | . 8 9 . 11 14 2 . Ballistic Gun 1 | . 5 . . . . . 7 Ballistic Cannon 4 | . 1 14 . 14 2 . . Launcher 1 | . . 4 . 2 . . . Slashing Weapon 1 | . . . . . . 8 . Naked Turns . | . . . . . . . . Heaviest Build 110 | 14 92 97 89 97 110 105 104 Greatest Support 80 | 20 40 10 10 10 80 80 60 Greatest Overweight (x) 9 | 3 9 9 8 9 1 8 8 Average Overweight (x) 4 | . 6 9 8 9 1 2 2 Largest Inventory Capacity 25 | 8 25 25 25 25 25 25 25 Average Capacity 24 | 7 22 25 25 25 25 25 25 Most Carried 25 | 4 24 25 25 25 25 25 25 Average Carried 22 | 2 16 24 24 24 24 24 24 Final Capacity 25 | 8 25 25 25 25 25 25 25 Final Carried 25 | 4 23 25 25 24 24 25 24 Class Distribution -------------------- 60% | Mutant 34% | Scavenger-Mutant 5% | Commander-Mutant Dominant Class ---------------- Mutant | -10/Materials Mutant | -10/Mines Mutant | -10/Exiles Mutant | -9/Mines Scavenger-Mutant | -8/Materials Mutant | -8/Garrison Mutant | -8/Materials Resources | -11 -10 -10 -10 -9 -8 -8 -8 ----------- Run | Yrd Mat Min Exi Min Mat Gar Mat Matter Collected 2461 | 280 232 224 . 44 751 437 493 Remotely . | . . . . . . . . Salvage Created 4517 | 92 638 81 . . 1656 925 1125 Parts 231 | 4 30 7 . . 83 41 66 Haulers Intercepted 8 | . 2 . . . 5 . 1 Recyclers Shooed 5 | 1 3 . . . 1 . . Parts Field Recycled . | . . . . . . . . Retrieved Matter . | . . . . . . . . Parts Self-Destructed . | . . . . . . . . Prevented . | . . . . . . . . Kills | -11 -10 -10 -10 -9 -8 -8 -8 ------- Run | Yrd Mat Min Exi Min Mat Gar Mat Combat Hostiles Destroyed 91 | . 10 5 . . 31 21 24 Melee 4 | . . . . . . 4 . Guns 31 | . 8 . . . 2 3 18 Cannons 29 | . 2 1 . . 24 2 . AOE 26 | . . 4 . . 4 12 6 Classes Destroyed 14 | 2 3 1 . . 7 1 . Worker 4 | . 1 . . . 3 . . Builder 3 | . . . . . 1 . 2 Tunneler 2 | 1 1 . . . . . . Hauler 8 | . 2 . . . 5 . 1 Recycler 4 | 1 1 . . . . . 2 Watcher 1 | . . . . . 1 . . Swarmer 23 | . . 3 . . 5 8 7 Grunt 49 | . 10 2 . . 15 11 11 Brawler 3 | . . . . . 1 2 . Duelist 3 | . . . . . 1 . 2 Sentry 10 | . . . . . 7 . 3 Hunter 1 | . . . . . 1 . . Programmer 1 | . . . . . . 1 . Heavy 2 | . . . . . 1 . 1 Best Kill Streak 10 | 2 3 3 . . 6 4 10 Combat Bots Only 9 | . 3 3 . . 5 4 9 Max Kills in Single Turn 4 | 1 2 3 . . 2 3 4 Gunslinging . | . . . . . . . . Exploded 3 | . . 3 . . 1 3 3 Melee 1 | . . . . . . 1 . Uniques/NPCs Destroyed . | . . . . . . . . Combat | -11 -10 -10 -10 -9 -8 -8 -8 -------- Run | Yrd Mat Min Exi Min Mat Gar Mat Hostile Shots Fired 455 | . 58 10 . . 170 104 113 Missed 111 | . 14 3 . . 41 24 29 Damage Taken 5690 | . 625 127 . 6 1988 1428 1516 Core 736 | . 138 42 . . 160 227 169 Absorbed by Shields . | . . . . . . . . Redirected to Shielding 74 | . . . . . . 46 28 Regen/Repaired (Parts) 322 | . 45 . . . 129 . 148 Core Remaining (%) 64 | 100 . . . 28 . . . Volleys Fired 283 | 5 49 5 . 1 107 40 76 Largest 2 | 2 2 2 . 2 2 2 2 Hottest 160 | 90 110 68 . 95 160 160 124 Shots Fired 553 | 10 97 11 . 3 216 69 147 Gun 279 | 10 92 . . . 6 28 143 Cannon 249 | . 4 6 . 3 205 31 . Launcher 25 | . 1 5 . . 5 10 4 Special . | . . . . . . . . Kinetic 158 | . 44 5 . 2 36 1 70 Thermal 370 | 10 52 1 . 1 175 58 73 Explosive 25 | . 1 5 . . 5 10 4 Electromagnetic . | . . . . . . . . Robot Hit Streak 22 | 3 9 3 . 2 22 10 13 Robot Miss Streak 7 | 2 7 2 . 1 4 3 2 Penetration Max . | . . . . . . . . Secondary Targets 3 | . 1 . . . . . 2 Max Gunslinging Chain 1 | . 1 . . . . . 1 Shots Hit Robots 387 | 5 60 5 . 2 131 81 103 Core Hits 201 | 3 33 6 . . 64 42 53 Critical Kills . | . . . . . . . . Critical Parts Destroyed . | . . . . . . . . Critical Strikes 17 | . 1 . . . 3 12 1 Burn 4 | . 1 . . . 2 . 1 Blast 1 | . . . . . 1 . . Sever 12 | . . . . . . 12 . Melee Attacks 61 | . . . . . . 61 . Impact . | . . . . . . . . Slashing 52 | . . . . . . 52 . Piercing . | . . . . . . . . Sneak Attacks 10 | . . . . . . 10 . Combat Hostiles . | . . . . . . . . Follow-up Attacks 6 | . . . . . . 6 . Damage Inflicted 10630 | 61 909 306 . 50 3590 3335 2379 Guns 2997 | 61 759 . . . 97 224 1856 Cannons 3759 | . 71 55 . 38 3054 541 . Explosions 2184 | . 30 236 . . 431 964 523 Melee 1606 | . . . . . . 1606 . Ramming 84 | . 49 15 . 12 8 . . Kinetic 1771 | . 342 55 . 38 484 16 836 Thermal 4985 | 61 488 . . . 2667 749 1020 Explosive 2184 | . 30 236 . . 431 964 523 Electromagnetic . | . . . . . . . . Impact . | . . . . . . . . Slashing 1606 | . . . . . . 1606 . Piercing . | . . . . . . . . Highest Corruption 6 | . . 2 2 2 4 5 6 Average Corruption 3 | . . 2 2 2 4 4 5 Corruption Purged . | . . . . . . . . Corruption Blocked . | . . . . . . . . Effects 148 | . . 5 1 13 59 43 27 Message Errors 36 | . . 1 1 2 18 8 6 Matter Fused 34 | . . . . 5 15 7 7 Heat Flow Errors 13 | . . . . 1 4 7 1 Energy Discharges 20 | . . . . 3 7 6 4 Parts Rejected 5 | . . . . . . 2 3 Parts Fused 2 | . . . . . 1 . 1 Data Loss (minor) 13 | . . 2 . 1 5 2 3 Data Loss (major) 11 | . . 1 . . 2 7 1 Misfires 8 | . . 1 . 1 5 1 . Alerts 3 | . . . . . 1 2 . Weapon Failures 3 | . . . . . 1 1 1 Overload Shots . | . . . . . . . . Overflow Damage 169 | . . . . 5 22 114 28 Projectiles 40 | . . . . 5 22 13 . Explosions 65 | . . . . . . 37 28 Melee 64 | . . . . . . 64 . Knockbacks 4 | . . . . 2 2 . . Impact . | . . . . . . . . Kinetic 4 | . . . . 2 2 . . Secondary . | . . . . . . . . Self-Inflicted Damage 245 | . 24 61 . 6 24 117 13 Shots 8 | . . 2 . . 1 4 1 Rammed 11 | . 6 2 . 1 2 . . Targets Rammed 11 | . 6 2 . 1 2 . . Kicked . | . . . . . . . . Crushed . | . . . . . . . . Highest Temperature 318 | 150 318 39 . 130 303 198 283 Average Temperature 75 | 78 65 18 . 54 71 68 96 Received Heat Transfer 2517 | . 378 42 . . 819 684 594 Effects 3 | . 1 . . . 1 . 1 Energy Bleed 2 | . 1 . . . . . 1 Interference 1 | . . . . . 1 . . Siege Activations . | . . . . . . . . Robots Corrupted . | . . . . . . . . Combat Hostiles . | . . . . . . . . Parts Fried . | . . . . . . . . Impact Corruptions . | . . . . . . . . Robots Melted 2 | . . . . . 2 . . Combat Hostiles 1 | . . . . . 1 . . Parts Melted 24 | . 1 . . . 15 3 5 Heat Transferred 10075 | 161 1443 . . . 5091 1345 2035 Parts Sabotaged . | . . . . . . . . Parts Stolen . | . . . . . . . . Parts Stripped . | . . . . . . . . Power Chain Reactions . | . . . . . . . . Alert | -11 -10 -10 -10 -9 -8 -8 -8 ------- Run | Yrd Mat Min Exi Min Mat Gar Mat Peak Influence 1388 | 10 236 96 . 1 439 1388 1133 Initial 676 | . 6 16 . . . 287 676 Average 267 | 3 41 31 . . 216 784 915 Maximum Alert Level 4 | . 1 . . . 2 4 4 Low Security (%) 60 | 100 96 100 . 100 46 . . Level 1 19 | . 3 . . . 47 22 . Level 2 4 | . . . . . 5 19 4 Level 3 12 | . . . . . . 31 91 Level 4 3 | . . . . . . 25 3 Level 5 . | . . . . . . . . High Security . | . . . . . . . . Max Security . | . . . . . . . . Squads Dispatched 15 | . 6 1 . . 4 . 4 Investigation 11 | . 6 1 . . 2 . 2 Extermination . | . . . . . . . . Reinforcement 3 | . . . . . 2 . 1 Assault 1 | . . . . . . . 1 Garrison . | . . . . . . . . Intercept . | . . . . . . . . Searches Triggered . | . . . . . . . . Construction Impeded 1 | . . . . . 1 . . Haulers Reinforced . | . . . . . . . . Active Scanning Responses . | . . . . . . . . Cargo Convoy Interrupts . | . . . . . . . . Stealth | -11 -10 -10 -10 -9 -8 -8 -8 --------- Run | Yrd Mat Min Exi Min Mat Gar Mat Distress Signals 8 | . . . . . 5 3 . Communications Jammed . | . . . . . . . . Distress Signals . | . . . . . . . . Times Spotted 158 | . 23 7 . . 57 34 37 Peak Tracking Total 7 | . 5 3 . . 7 6 6 Tactical Retreats 11 | . . . . . 3 6 2 Traps | -11 -10 -10 -10 -9 -8 -8 -8 ------- Run | Yrd Mat Min Exi Min Mat Gar Mat Traps Triggered 8 | . 2 . . . . 4 2 Indirectly . | . . . . . . . . Trap Hack Attempts 10 | . . . . . . 10 . Triggered . | . . . . . . . . Disarmed . | . . . . . . . . Reprogrammed 3 | . . . . . . 3 . Reused . | . . . . . . . . Traps Extracted . | . . . . . . . . Installed . | . . . . . . . . Triggered . | . . . . . . . . Machines | -11 -10 -10 -10 -9 -8 -8 -8 ---------- Run | Yrd Mat Min Exi Min Mat Gar Mat Machines Disabled 4 | . . . . . 2 2 . Max in Single Turn 1 | . . . . . 1 1 . Garrison Relay 1 | . . . . . . 1 . Machines Repaired . | . . . . . . . . Machines Dismantled . | . . . . . . . . Machines Sabotaged . | . . . . . . . . Overloaded Fab Kills . | . . . . . . . . Hacking | -11 -10 -10 -10 -9 -8 -8 -8 --------- Run | Yrd Mat Min Exi Min Mat Gar Mat Machines Accessed 39 | . 11 1 1 . 16 4 6 Terminals 26 | . 8 . . . 9 4 5 Fabricators . | . . . . . . . . Repair Stations 4 | . 1 . . . 2 . 1 Recycling Units 4 | . 2 . . . 2 . . Scanalyzers 2 | . . . . . 2 . . Garrison Access 1 | . . . . . 1 . . Total Hacks 100 | . 33 1 1 . 44 6 15 Successful 53 | . 14 1 1 . 28 2 7 Failed 46 | . 19 . . . 15 4 8 Catastrophic 10 | . 5 . . . 2 1 2 Database Lockouts 1 | . . . . . 1 . . Manual 39 | . 20 . . . 15 . 4 Terminals 74 | . 26 . . . 31 6 11 Fabricators . | . . . . . . . . Repair Stations 13 | . 4 . . . 5 . 4 Recycling Units 6 | . 3 . . . 3 . . Scanalyzers 4 | . . . . . 4 . . Garrison Access 1 | . . . . . 1 . . Terminal Hacks 32 | . 9 1 1 . 16 2 3 Record 1 | . . . 1 . . . . Robot Analysis 2 | . 2 . . . . . . Prototype ID Bank 9 | . 3 . . . 5 . 1 Open Door 1 | . . 1 . . . . . Branch Access Points 1 | . . . . . 1 . . Emergency Access Points 1 | . . . . . . 1 . Alert Level 2 | . 1 . . . 1 . . Unreport Threat 3 | . . . . . 2 . 1 Locate Traps 5 | . . . . . 5 . . Dispatch Records 1 | . . . . . 1 . . Recall Investigation 2 | . 2 . . . . . . Recall Reinforcements 1 | . 1 . . . . . . Hauler Manifests 2 | . . . . . 1 . 1 Garrison Registry 1 | . . . . . . 1 . Fabricator Hacks . | . . . . . . . . Repair Station Hacks 12 | . 3 . . . 5 . 4 Scan Component 7 | . 2 . . . 3 . 2 Repair 5 | . 1 . . . 2 . 2 Recycling Unit Hacks . | . . . . . . . . Scanalyzer 4 | . . . . . 4 . . Insert Component 2 | . . . . . 2 . . Analyze 2 | . . . . . 2 . . Garrison Access Hacks 1 | . . . . . 1 . . Unlock Access 1 | . . . . . 1 . . Unauthorized Hacks 4 | . 2 . . . 2 . . Terminals . | . . . . . . . . Fabricators . | . . . . . . . . Repair Stations . | . . . . . . . . Recycling Units 4 | . 2 . . . 2 . . Tunnel 4 | . 2 . . . 2 . . Scanalyzers . | . . . . . . . . Garrison Access . | . . . . . . . . Data Cores Recovered . | . . . . . . . . Used . | . . . . . . . . Hacking Detections 29 | . 9 . . . 12 2 6 Full Trace Events 3 | . 2 . . . . . 1 Feedback Events . | . . . . . . . . Feedback Blocked . | . . . . . . . . Robot Schematics Acquired . | . . . . . . . . Robots Built . | . . . . . . . . Authchips . | . . . . . . . . Time . | . . . . . . . . Total Robot Build Rating . | . . . . . . . . Part Schematics Acquired 2 | . . . . . 2 . . Parts Built . | . . . . . . . . Authchips . | . . . . . . . . Time . | . . . . . . . . Total Part Build Rating . | . . . . . . . . Parts Repaired 5 | . 1 . . . 2 . 2 Time 159 | . 53 . . . 42 . 64 Parts Recycled . | . . . . . . . . Recycled Matter . | . . . . . . . . Retrieved Matter . | . . . . . . . . Retrieved Components . | . . . . . . . . Parts Scanalyzed 2 | . . . . . 2 . . Part Schematics Acquired 2 | . . . . . 2 . . Parts Damaged . | . . . . . . . . Bothacking | -11 -10 -10 -10 -9 -8 -8 -8 ------------ Run | Yrd Mat Min Exi Min Mat Gar Mat Used RIF Installer . | . . . . . . . . Robots Hacked . | . . . . . . . . Non-combat . | . . . . . . . . Combat . | . . . . . . . . Robot Hacks Applied . | . . . . . . . . Relay Couplers Released 6 | . . . . . . 6 . Machine Destruction 3 | . . . . . . 3 . Programmers 3 | . . . . . . 3 . Fabnet Peak Effective % . | . . . . . . . . Robots Rewired 6 | . . . . . . 6 . Allies Hacked . | . . . . . . . . Hacks Repelled . | . . . . . . . . Allies | -11 -10 -10 -10 -9 -8 -8 -8 -------- Run | Yrd Mat Min Exi Min Mat Gar Mat Total Allies 11 | . . . . 3 . 8 . Largest Group 6 | . . . . 3 3 6 3 Highest-Rated Group 103 | . . . . 40 40 103 51 Highest-Rated Ally 31 | . . . . 16 16 31 31 Total Orders . | . . . . . . . . Ally Attacks 87 | . . . . . 33 36 18 Total Damage 1299 | . . . . . 439 629 231 Kills 23 | . . . . . 7 12 4 Allies Corrupted . | . . . . . . . . Allies Melted . | . . . . . . . . Intel | -11 -10 -10 -10 -9 -8 -8 -8 ------- Run | Yrd Mat Min Exi Min Mat Gar Mat Robot Analysis Total 2 | . 2 . . . . . . Derelict Logs Recovered 2 | . . 1 . 1 . . . Drone Launches . | . . . . . . . . Drone Recoveries . | . . . . . . . . Exploration | -11 -10 -10 -10 -9 -8 -8 -8 ------------- Run | Yrd Mat Min Exi Min Mat Gar Mat Turns Passed 11283 | 76 2235 1762 254 966 3564 1460 966 Spaces Moved 4668 | 34 918 769 126 443 1258 678 442 Core 11 | 11 . . . . . . . Treads 1502 | . 122 . . . 1258 119 3 Legs 222 | 23 199 . . . . . . Wheels 2933 | . 597 769 126 443 . 559 439 Hover . | . . . . . . . . Flight . | . . . . . . . . Fastest Speed 50 | 50 120 215 200 215 240 105 120 Average Speed 200 | 133 207 215 200 215 240 147 123 Slowest Speed 320 | 200 320 215 200 215 240 320 246 Overloaded Moves . | . . . . . . . . Propulsion Burnouts . | . . . . . . . . Robots Hopped . | . . . . . . . . Cave-ins Triggered . | . . . . . . . . Exploration Rate (%) 70 | 4 98 98 48 98 97 82 38 Regions Visited 7 Branch Regions 3 Pre-discovered Areas 8 | . 2 2 1 1 2 . . Known Exits Taken 1 | . . . . . 1 . . Unknown Exits Taken 5 | 1 1 1 1 1 . . . Scrap Searched 4 | . . 1 . 3 . . . Spaces Dug 7 | . . . . . 5 2 . Terrain Destroyed 176 | . 7 46 . 1 66 30 26 Melee 2 | . . . . . . 2 . Projectile 48 | . . 1 . 1 46 . . AOE 126 | . 7 45 . . 20 28 26 Terrain Rammed . | . . . . . . . . Walls Destroyed . | . . . . . . . . Machines Disabled . | . . . . . . . . Actions | -11 -10 -10 -10 -9 -8 -8 -8 --------- Run | Yrd Mat Min Exi Min Mat Gar Mat Total 5986 | 50 1142 869 130 454 1604 999 738 Wait 624 | . 123 71 . 5 121 146 158 Move 4657 | 33 917 768 125 442 1258 672 442 Hop . | . . . . . . . . Pick Up 103 | 4 24 9 1 1 29 17 18 Fast Attach 33 | 7 1 1 . . 9 8 7 Attach 30 | . 2 . . 1 9 9 9 Detach 6 | . . . 1 . 2 1 2 Swap 70 | 1 12 4 1 2 24 15 11 Drop 94 | . 8 9 2 1 43 16 15 Fire 283 | 5 49 5 . 1 107 40 76 Melee 53 | . . . . . . 53 . Ram 9 | . 6 2 . 1 . . . Kick . | . . . . . . . . Crush 2 | . . . . . 2 . . Escape Stasis 12 | . . . . . . 12 . Rewire . | . . . . . . . . Trap 10 | . . . . . . 10 . Miscellaneous . | . . . . . . . . Route ------- -11/Scrapyard -10/Materials (discovered 4 exits: [*Mat x3] / *Min) -10/Mines (discovered 3 exits: [*Mat x2] / *Exi) -10/Exiles (discovered 2 exits: [*Min x2]) -9/Mines (discovered 2 exits: *Mat x2) -8/Materials (discovered 4 exits: [*Fac x3] / Gar) -8/Garrison (discovered 3 exits: *Mat x3) -8/Materials (discovered 1 exit: [*Fac]) History --------- Turn | Location | Event 26 | -11/Scrapyard | Discovered new exit (range 16) 77 | -11/Scrapyard | Entered Materials 298 | -10/Materials | Discovered new exit (range 15) 306 | -10/Materials | Build established: Mutant 919 | -10/Materials | Discovered new exit (range 6) 983 | -10/Materials | Core integrity fell below 50% 1357 | -10/Materials | Discovered new exit (range 14) 1905 | -10/Materials | Repaired Broken Lgt. Nuclear Core 2168 | -10/Materials | Discovered new exit (range 11) 2312 | -10/Materials | Entered Mines 2313 | -10/Mines | Learned location of Storage (-9) 2416 | -10/Mines | Received a Rocket Launcher from a helpful Derelict 2699 | -10/Mines | Met a Derelict shopkeep closing up shop 2734 | -10/Mines | Discovered new exit (range 15) 2930 | -10/Mines | Deemed a non-threat by the Exiles lab entrance 2984 | -10/Mines | Joined a pair of Derelicts in attacking an 0b10 outpost 3399 | -10/Mines | Found a hidden stash of uninstalled traps 3417 | -10/Mines | Learned location of Mines (-9) 3552 | -10/Mines | Discovered new exit (range 7) 4066 | -10/Mines | Discovered new exit (range 5) 4074 | -10/Mines | Entered Exiles 4108 | -10/Exiles | Discovered new exit (range 15) 4132 | -10/Exiles | Met 8R-AWN 4156 | -10/Exiles | Met EX-HEX 4240 | -10/Exiles | Met EX-DEC 4250 | -10/Exiles | Learned location of Zion (-7) 4306 | -10/Exiles | Discovered new exit (range 14) 4328 | -10/Exiles | Entered Mines 4332 | -9/Mines | Met a Derelict bent on vengeance 5074 | -9/Mines | Assisted by bots powering up and referring to "LRC-V3" 5213 | -9/Mines | Discovered new exit (range 6) 5279 | -9/Mines | Discovered new exit (range 6) 5294 | -9/Mines | Entered Materials 5294 | -8/Materials | Accompanied by 3 allies 5294 | -8/Materials | Evolved 4 slots: Propulsion x2, Utility x2 5584 | -8/Materials | Build established: Scavenger-Mutant 5943 | -8/Materials | Repaired Hvy. Hammer 6142 | -8/Materials | Discovered new exit (range 14) 7143 | -8/Materials | Repaired Lgt. Treads 7605 | -8/Materials | Discovered new exit (range 4) 7919 | -8/Materials | Central database locked down 8119 | -8/Materials | Discovered new exit (range 12) 8858 | -8/Materials | Identified exit to Garrison 8858 | -8/Materials | Entered Garrison 8922 | -8/Garrison | Triggered checkpoint 9143 | -8/Garrison | Build established: Mutant 9256 | -8/Garrison | Core integrity fell below 50% 9264 | -8/Garrison | Triggered checkpoint 9399 | -8/Garrison | Discovered new exit (range 8) 9446 | -8/Garrison | Triggered checkpoint 9488 | -8/Garrison | Garrison Relay disabled 9514 | -8/Garrison | Discovered new exit (range 24) 9514 | -8/Garrison | Discovered new exit (range 93) 9514 | -8/Garrison | Discovered new exit (range 46) 9746 | -8/Garrison | Triggered checkpoint 9847 | -8/Garrison | Rescued a captive Derelict 9849 | -8/Garrison | Rescued a captive Derelict 9915 | -8/Garrison | Build established: Commander-Mutant 9926 | -8/Garrison | Triggered checkpoint 10027 | -8/Garrison | Attempted to access garrison exit controls, blocked by remote lockdown 10140 | -8/Garrison | Attempted to access garrison exit controls, blocked by remote lockdown 10318 | -8/Garrison | Entered Materials 10318 | -8/Materials | Accompanied by 3 allies 10514 | -8/Materials | Build established: Mutant 10645 | -8/Materials | Repaired Arm. Wheel 10678 | -8/Materials | Repaired Arm. Wheel 10718 | -8/Materials | First assault squad dispatched 10768 | -8/Materials | Discovered new exit (range 4) 10817 | -8/Materials | Destroyed 9 combat bots 11061 | -8/Materials | Core integrity fell below 20% 11284 | -8/Materials | Destroyed by G-47 Trooper with Particle Gun Last Messages --------------- Rocket Array Hpw. Field Laser >>Alert(Purge) Purged threat record, alert level lowered. 11190_ Acquired 100 matter. 11206_ System corrupted: Matter fused (-10). 11213_ Triggered Shock Trap. 11213_ The floor emits a surge of raw power. 11213_ System corrupted (+1). 11224_ Critical hit (Burn: +37). 11231_ Arm. Wheel destroyed. 11236_ Destroyed Lgt. Armor Plating. 11237_ Hrd. Medium Armor Plating destroyed. 11257_ System corrupted: Arm. Treads fused. 11257_ Destroyed Lgt. Deuterium Engine. 11265_ Y-45 Defender destroyed. 11277_ Switching to secondary target: G-47 Trooper. 11279_ Acquired Lgt. Treads. 11280_ Acquired 56 matter. 11284_ Critical hit (Burn: +37). Map ----- +----------------------------------------------------+ | ?????????????????????????????????????????????? | | ?????????????????????????????????????????????# | | ?????????????????????????????????????????##### | | ?????????????????????????????????????????# | | ?????????????????????????????????????????#= " | | ?????????????????????????????????????????# "" | | ?????????????????????????????????????????# "" | | ?????????????????????????????????????????# | | ?????????????????????????????????????????# | | ?????????????????????????????????????????##### | | ????????????????????????????????########### | | ??????????????????????????????? # # | | ??????????????????????????????? # # | | ??????????????????????????????? # + | | ??????????????????????????????? # """ # | | ??????????????????????########? # """"" # | | ??????????????????????# [ !#? # """"" # | | ??????????????????????# ## # """"" # | | ??????????????????????# """ ## # """ # | | ??????????????????????# """ ## #####?##### | | ??????????????????????# """ ## #?????????# | | ??????????????????????? ??# #?????????# | | ??????????????????????###+##### #????????## | | ??????????????????????# ########### | | ?????????????###/######[ ^ g | | ???????+ r=*!%@ =^ ^ g % % | | ???????# u u ######! ^^!!! g % | | ??????????????????????# !!! ########## ! | | ??????????????????????### !! # T ##!!! | | ????????????????????????# # """ ##%### | | ????????????????????????+ + """ % ##!#?? | | ????????????????????????####### # """ ##*#?? | | ??????????????????????????????# # ## #?? | | ??????????????????????????????# ########## #?? | | ??????????????????????????????# #????????# #?? | | ?????????????????????????????? ????????# #?? | | ?????????????????????????????? ????????# #?? | | ?????????????????????????????? ????????? ??? | | ??????????????????????????????###????????? ??? | | ?????????????????????????????????????????? ??? | | ?????????????????????????????????????????? ??? | | ?????????????????????????????????????????? ??? | | ?????????????????????????????????????????? ??? | | ?????????????????????????????????????????? ??? | | ?????????????????????????????????????????????? | | ?????????????????????????????????????????????? | | ?????????????????????????????????????????????? | | ?????????????????????????????????????????????? | | ?????????????????????????????????????????????? | | ?????????????????????????????????????????????? | +----------------------------------------------------+ Best States ------------- Heat Dissipation 59 Coolant Potential 50 Energy Generation 14 Energy Capacity 275 Matter Stores 300 Matter Capacity 300 Sight Range 16 Terrain Scan Density 10 Armor Coverage 375 Resistance: EM 15 Core Shielding 20 Utility Shielding 66 Evasion (%) 55 Recoil Reduction 4 Item Schematics ----------------- Med. Storage Unit | -8/Materials | Scanalyzed Mni. Grenade Launcher | -8/Materials | Scanalyzed Robot Schematics ------------------ None Fabricated ------------ Nothing Alien Tech Used ----------------- None Achievements -------------- None Challenges ------------ None Game ------ Seed ImpactSpreadShotgun Manual? 0 Play Time 01:25:28 Cumulative 503.0 hours Start 2024.07.26 @ 21:28:24 End 2024.07.27 @ 17:22:53 Sessions 3 Manual Loads 0 Difficulty Rogue Special Mode None Game No. 147 Rogue 108 Adventurer 0 Explorer 39 Win Type - Total 14 Types 11/1/1/1/0/0/0/0/0 Lore% 78 Gallery% 83 Achievement% 72 Wizard Run 0 Options --------- Layout 0 ASCII 1 Keyboard 1 Movement Arrows Keybinds 0 Fullscreen 2 Font 36/Smallcaps Map View 76x50 Zoom Use 0% Tactical HUD 1 Map Filters NONE Filters NONE Steam 1 RUN: 8f9727a1-3b20-4c12-8714-a99658c5eb4d